bitfinex-derivatives/quotes_BTCF0:USTF0_20241104
["timestamp","ask_amount","ask_price","bid_price","bid_amount"]
[1730679636982,0.3808,68650.0,68649.0,0.23685112]
[1730679637480,0.3698,68650.0,68649.0,0.23585112]
[1730679637875,0.3768,68650.0,68649.0,0.23685112]
[1730679639982,0.3768,68650.0,68649.0,0.23585112]
[1730679640191,0.3768,68650.0,68649.0,0.23685112]
[1730679640780,0.3768,68650.0,68649.0,0.23485112]
[1730679640781,0.3608,68650.0,68649.0,0.23485112]
[1730679640980,0.3608,68650.0,68649.0,0.23785112]
[1730679645681,0.3608,68650.0,68649.0,0.29604954]
[1730679646076,6.39138684,68661.0,68649.0,0.67311888]
[1730679646385,6.3608,68661.0,68660.0,0.14004076]
[1730679647182,6.3688,68661.0,68660.0,0.14004076]
[1730679647583,6.3788,68661.0,68660.0,0.14104076]
[1730679647780,6.3788,68661.0,68660.0,0.20660376]
[1730679647781,6.444362,68661.0,68660.0,0.20660376]
[1730679647983,6.445362,68661.0,68660.0,0.14204076]
[1730679648592,6.435362,68661.0,68660.0,0.20660376]
[1730679648794,6.439362,68661.0,68660.0,0.20660376]
[1730679649090,6.439362,68661.0,68660.0,0.14104076]
[1730679649290,6.439362,68661.0,68660.0,0.001]
[1730679649492,0.065566,68657.0,68656.0,0.05812492]
[1730679649696,6.36908,68661.0,68656.0,0.05820388]
[1730679649993,0.065566,68657.0,68656.0,0.05820388]
[1730679650494,0.065567,68656.0,68655.0,0.05820388]
[1730679650686,6.00832,68661.0,68654.0,0.05820388]
[1730679650687,6.03638,68661.0,68654.0,0.05820388]
[1730679650880,0.065568,68655.0,68654.0,0.05820388]
[1730679652490,0.067568,68655.0,68654.0,0.05820388]
[1730679653185,0.069568,68655.0,68654.0,0.05820388]
[1730679656795,0.09781694,68655.0,68654.0,0.05820388]
[1730679657484,0.065569,68653.0,68652.0,0.06557]
[1730679661083,0.02824894,68655.0,68652.0,0.06557]
[1730679661383,0.06557,68654.0,68653.0,0.065569]
[1730679662986,0.001,68654.0,68653.0,0.065569]
[1730679663194,6.0,68661.0,68660.0,0.065563]
[1730679664703,5.67079756,68661.0,68660.0,0.864283]
[1730679664895,5.67079756,68661.0,68660.0,1.00432376]
[1730679665101,5.43820375,68661.0,68660.0,1.22248751]
[1730679665607,5.43820375,68661.0,68660.0,1.25089799]
[1730679666106,5.43220375,68661.0,68660.0,1.24989799]
[1730679666703,0.065544,68681.0,68678.0,0.065545]
[1730679667015,0.065544,68681.0,68680.0,0.17192019]
[1730679667612,0.09440448,68681.0,68680.0,0.17192019]
[1730679667802,0.10740448,68681.0,68680.0,0.17192019]
[1730679668410,0.02886048,68681.0,68680.0,0.23746419]
[1730679668714,0.091543,68681.0,68680.0,0.23946419]
[1730679668913,0.091543,68681.0,68680.0,0.09942343]
[1730679669615,0.091543,68681.0,68680.0,0.067544]
[1730679669916,0.091543,68681.0,68680.0,0.002]
[1730679670106,0.091543,68681.0,68680.0,0.029255]
[1730679670606,0.123343,68681.0,68680.0,0.029255]
[1730679670802,0.560143,68681.0,68680.0,0.029255]
[1730679674118,0.920943,68681.0,68680.0,0.029255]
[1730679674317,0.920943,68681.0,68675.0,0.0436112]
[1730679674510,0.20558876,68676.0,68675.0,0.0436112]
[1730679675316,0.065548,68676.0,68675.0,0.13743929]
[1730679675513,0.065548,68676.0,68675.0,0.13843929]
[1730679675714,0.072548,68676.0,68675.0,0.13943929]
[1730679676423,0.072548,68676.0,68675.0,0.07389129]
[1730679676610,0.21258876,68676.0,68675.0,0.07389129]
[1730679677116,0.22058876,68676.0,68675.0,0.07389129]
[1730679679012,0.22058876,68676.0,68675.0,0.03028009]
[1730679679519,0.080548,68676.0,68675.0,0.03028009]
[1730679679719,0.1100349,68676.0,68675.0,0.03028009]
[1730679680717,0.1100349,68676.0,68675.0,0.002]
[1730679681524,0.1100349,68676.0,68675.0,0.02848303]
[1730679682109,5.53323865,68676.0,68675.0,0.02848303]
[1730679682514,5.53323865,68676.0,68675.0,0.09403103]
[1730679682515,5.43820375,68676.0,68675.0,0.09403103]
[1730679682720,5.43820375,68676.0,68675.0,0.12593103]
[1730679682913,5.43820375,68676.0,68675.0,0.15793103]
[1730679684117,5.43820375,68676.0,68675.0,0.131448]
[1730679684610,5.43820375,68676.0,68675.0,0.16005706]
[1730679686628,5.50375175,68676.0,68675.0,0.06250906]
[1730679686819,5.50375175,68676.0,68675.0,0.03060906]
[1730679692833,5.50375175,68676.0,68675.0,0.08886814]
[1730679695826,5.50375175,68676.0,68675.0,0.03060906]
[1730679697033,5.50375175,68676.0,68675.0,0.07430936]
[1730679697232,5.97119175,68676.0,68675.0,0.07430936]
[1730679697432,5.97119175,68676.0,68675.0,0.03125749]
[1730679699123,5.53435175,68676.0,68675.0,0.03125749]
[1730679699330,5.97119175,68676.0,68675.0,0.02225749]
[1730679700942,0.065553,68670.0,68669.0,0.0437003]
[1730679701135,0.426353,68670.0,68669.0,0.07477502]
[1730679701324,0.426353,68670.0,68669.0,0.03107472]
[1730679702235,0.428353,68670.0,68669.0,0.03107472]
[1730679702439,0.429353,68670.0,68669.0,0.03107472]
[1730679705534,0.45764817,68670.0,68669.0,0.03107472]
[1730679713146,5.88085192,68670.0,68669.0,0.03107472]
[1730679717253,5.52005192,68670.0,68669.0,0.03107472]
[1730679722149,5.52005192,68670.0,68665.0,0.05825908]
[1730679722150,0.065556,68667.0,68665.0,0.05825908]
[1730679722345,6.04878955,68670.0,68661.0,0.04369517]
[1730679722346,0.51821463,68666.0,68661.0,0.04369517]
[1730679722551,0.065567,68656.0,68655.0,0.05825908]
[1730679722763,0.065572,68650.0,68649.0,0.05825908]
[1730679722950,0.15742963,68650.0,68649.0,0.03097599]
[1730679723354,0.56640033,68650.0,68649.0,0.03097599]
[1730679723849,0.426372,68650.0,68649.0,0.03097599]
[1730679724358,0.426372,68650.0,68649.0,0.03597599]
[1730679724359,0.427372,68650.0,68649.0,0.03597599]
[1730679724759,0.002,68650.0,68649.0,0.18600432]
[1730679724953,0.4232,68669.0,68649.0,0.21830432]
[1730679724954,0.065566,68657.0,68649.0,0.21830432]
[1730679725159,0.065566,68657.0,68656.0,0.065567]
[1730679725359,0.065563,68661.0,68660.0,0.065562]
[1730679727169,0.065563,68661.0,68660.0,0.068562]
[1730679727960,0.065558,68665.0,68664.0,0.065557]
[1730679729553,0.066558,68665.0,68664.0,0.065557]
[1730679729861,0.066558,68665.0,68664.0,0.09204306]
[1730679730272,0.001,68665.0,68664.0,0.09204306]
[1730679731963,0.001,68665.0,68664.0,0.12124711]
[1730679732164,0.065556,68667.0,68664.0,0.05569011]
[1730679732366,0.065556,68667.0,68666.0,0.065557]
[1730679733964,0.066556,68667.0,68666.0,0.065557]
[1730679734452,0.001,68667.0,68666.0,0.065557]
[1730679734857,0.001,68667.0,68666.0,0.12372726]
[1730679735052,0.066556,68667.0,68666.0,0.12372726]
[1730679735765,0.065556,68667.0,68666.0,0.12672726]
[1730679736661,0.065556,68667.0,68666.0,0.003]
[1730679738072,0.097256,68667.0,68666.0,0.001]
[1730679738273,0.46858,68667.0,68664.0,0.02648606]
[1730679738462,0.20558633,68665.0,68664.0,0.02648606]
[1730679738971,0.64250633,68665.0,68664.0,0.02648606]
[1730679739173,0.64250633,68665.0,68643.0,0.07271282]
[1730679739174,0.065568,68655.0,68644.0,0.05817026]
[1730679739373,0.06558,68642.0,68638.0,0.05817026]
[1730679739672,0.065588,68634.0,68633.0,0.15385826]
[1730679739870,0.065588,68634.0,68633.0,0.18044745]
[1730679740068,0.065588,68634.0,68633.0,0.12227719]
[1730679740369,0.065588,68634.0,68633.0,0.11483324]
[1730679740575,0.065588,68634.0,68633.0,0.05668919]
[1730679741970,0.066588,68634.0,68633.0,0.06668919]
[1730679742269,0.066588,68634.0,68633.0,0.06968919]
[1730679742575,0.068588,68634.0,68633.0,0.05968919]
[1730679743162,0.070588,68634.0,68633.0,0.05668919]
[1730679745671,0.070588,68634.0,68633.0,0.02658919]
[1730679754381,0.070588,68634.0,68633.0,0.23220652]
[1730679754382,0.005,68634.0,68633.0,0.23220652]
[1730679754689,0.005,68634.0,68633.0,0.66932652]
[1730679755775,0.065581,68641.0,68639.0,0.065582]
[1730679755969,0.065581,68641.0,68640.0,0.3918]
[1730679756278,0.065581,68641.0,68634.0,0.032]
[1730679756279,0.065585,68637.0,68636.0,0.065586]
[1730679756466,0.14002833,68637.0,68633.0,0.09717719]
[1730679756671,0.066588,68634.0,68633.0,0.09917719]
[1730679757473,0.067588,68634.0,68633.0,0.10317719]
[1730679758065,0.065588,68634.0,68633.0,0.09217719]
[1730679758271,0.065588,68634.0,68633.0,0.09617719]
[1730679758571,0.065588,68634.0,68633.0,0.03058919]
[1730679758972,0.065588,68634.0,68633.0,0.03358919]
[1730679761779,0.065588,68634.0,68633.0,0.02958919]
[1730679762079,0.065588,68634.0,68633.0,0.03358919]
[1730679762276,0.065588,68634.0,68633.0,0.03058919]
[1730679762478,0.065588,68634.0,68633.0,0.03458919]
[1730679762678,0.09495576,68634.0,68633.0,0.03458919]
[1730679763587,0.09495576,68634.0,68633.0,0.03058919]
[1730679763790,0.09495576,68634.0,68633.0,0.03458919]
[1730679764381,0.09495576,68634.0,68633.0,0.03358919]
[1730679764888,0.09495576,68634.0,68633.0,0.03158919]
[1730679765381,0.09495576,68634.0,68633.0,0.03258919]
[1730679765769,0.09495576,68634.0,68633.0,0.02958919]
[1730679765972,0.09495576,68634.0,68633.0,0.03258919]
[1730679766874,0.09495576,68634.0,68633.0,0.03358919]
[1730679767284,0.09495576,68634.0,68633.0,0.03058919]
[1730679768579,0.09495576,68634.0,68633.0,0.08873324]
[1730679768891,0.09495576,68634.0,68633.0,0.08673324]
[1730679769279,0.09495576,68634.0,68633.0,0.08873324]
[1730679769481,0.09495576,68634.0,68633.0,0.03058919]
[1730679770483,0.065588,68634.0,68633.0,0.03058919]
[1730679770690,0.065588,68634.0,68633.0,0.02858919]
[1730679770879,0.065588,68634.0,68633.0,0.03058919]
[1730679771184,0.065588,68634.0,68633.0,0.03458919]
[1730679771383,0.065588,68634.0,68633.0,0.03358919]
[1730679771780,0.065588,68634.0,68633.0,0.03258919]
[1730679772482,0.065588,68634.0,68633.0,0.02958919]
[1730679772682,0.002,68634.0,68633.0,0.25644102]
[1730679772988,0.002,68634.0,68633.0,0.5445282]
[1730679773994,0.02859893,68643.0,68633.0,0.5445282]
[1730679773995,0.065584,68639.0,68633.0,0.4789392]
[1730679774179,0.02859893,68643.0,68637.0,0.065585]
[1730679774379,0.1032,68650.0,68641.0,0.05826402]
[1730679774380,0.06558,68642.0,68641.0,0.05826402]
[1730679774682,0.52941572,68645.0,68638.0,0.094]
[1730679774882,0.065579,68643.0,68642.0,0.05825859]
[1730679775180,0.20560733,68643.0,68642.0,0.05825859]
[1730679775588,0.065583,68639.0,68638.0,0.0634]
[1730679777982,0.065583,68639.0,68638.0,0.0674]
[1730679778183,0.065583,68639.0,68638.0,0.0714]
[1730679778588,0.065583,68639.0,68638.0,0.136984]
[1730679778897,0.065583,68639.0,68638.0,0.135984]
[1730679779275,0.065583,68639.0,68638.0,0.492784]
[1730679779476,0.065583,68639.0,68638.0,0.495784]
[1730679779985,0.065583,68639.0,68638.0,0.134984]
[1730679780189,0.065583,68639.0,68638.0,0.495784]
[1730679780891,0.065583,68639.0,68638.0,0.496784]
[1730679781389,0.065583,68639.0,68638.0,0.497784]
[1730679781688,0.066583,68639.0,68638.0,0.500784]
[1730679781888,0.001,68639.0,68638.0,0.139984]
[1730679782192,0.3608,68647.0,68638.0,0.36812891]
[1730679782497,0.065576,68646.0,68645.0,0.065576]
[1730679783597,0.065576,68646.0,68645.0,0.12378847]
[1730679783806,0.065576,68646.0,68645.0,0.065576]
[1730679784681,0.3608,68655.0,68645.0,0.57706833]
[1730679784882,0.3608,68655.0,68652.0,0.05820105]
[1730679785179,0.06557,68652.0,68651.0,0.065571]
[1730679785385,0.06557,68652.0,68651.0,0.097971]
[1730679785895,0.065573,68649.0,68648.0,0.05817395]
[1730679786085,0.065576,68646.0,68645.0,0.009]
[1730679786696,0.065576,68646.0,68645.0,0.03611357]
[1730679786894,0.065576,68646.0,68645.0,0.03211357]
[1730679787088,0.065576,68646.0,68645.0,0.02711357]
[1730679787679,0.066576,68646.0,68645.0,0.02711357]
[1730679788086,0.068576,68646.0,68645.0,0.02711357]
[1730679788392,0.071576,68646.0,68645.0,0.02711357]
[1730679788796,0.069576,68646.0,68645.0,0.02711357]
[1730679788996,0.065576,68646.0,68645.0,0.02811357]
[1730679790192,5.48877975,68646.0,68645.0,0.02811357]
[1730679791195,5.49077975,68646.0,68645.0,0.02711357]
[1730679791493,5.49077975,68646.0,68645.0,0.02811357]
[1730679791999,5.48877975,68646.0,68645.0,0.02911357]
[1730679792700,5.42320375,68646.0,68645.0,0.09469057]
[1730679793589,5.42320375,68646.0,68645.0,0.09569057]
[1730679793796,5.42320375,68646.0,68645.0,0.53273057]
[1730679794186,5.42320375,68646.0,68645.0,0.09569057]
[1730679794389,5.42420375,68646.0,68645.0,0.69987706]
[1730679794589,5.42420375,68646.0,68645.0,0.6270824]
[1730679795104,5.42320375,68646.0,68645.0,0.6170824]
[1730679795305,5.42320375,68646.0,68645.0,0.6350824]
[1730679795306,5.42520375,68646.0,68645.0,0.6350824]
[1730679798903,5.42520375,68646.0,68645.0,0.63474208]
[1730679799106,5.42520375,68646.0,68645.0,0.66325027]
[1730679800906,5.42520375,68646.0,68645.0,0.22621027]
[1730679801099,5.42520375,68646.0,68645.0,0.66325027]
[1730679801299,5.42520375,68646.0,68645.0,0.75050566]
[1730679801598,5.42520375,68646.0,68645.0,1.28617055]
[1730679801599,2.29330448,68646.0,68645.0,1.28617055]
[1730679801801,2.29330448,68646.0,68645.0,1.38921055]
[1730679803196,2.29330448,68646.0,68645.0,1.28617055]
[1730679803500,2.29330448,68646.0,68645.0,1.38847346]
[1730679803801,2.29230448,68646.0,68645.0,1.37847346]
[1730679803988,2.29230448,68646.0,68645.0,1.39247346]
[1730679804394,2.29230448,68646.0,68645.0,1.09247346]
[1730679806202,2.29230448,68646.0,68645.0,0.9892942]
[1730679808003,2.29230448,68646.0,68645.0,0.90273163]
[1730679808201,2.29230448,68646.0,68645.0,0.98934096]
[1730679808702,2.29230448,68646.0,68645.0,0.98954664]
[1730679808907,2.29230448,68646.0,68645.0,0.76976809]
[1730679809099,2.29230448,68646.0,68645.0,0.85686899]
[1730679809306,2.29230448,68646.0,68645.0,0.76976809]
[1730679809715,2.29230448,68646.0,68645.0,0.66684809]
[1730679810000,2.29230448,68646.0,68645.0,0.87317749]
[1730679811403,2.29230448,68646.0,68645.0,0.87319443]
[1730679812705,2.29230448,68646.0,68645.0,0.87336043]
[1730679813104,2.29230448,68646.0,68645.0,0.43632043]
[1730679813299,2.29230448,68646.0,68645.0,0.87336043]
[1730679813600,2.29230448,68646.0,68645.0,0.76993111]
[1730679813797,2.29230448,68646.0,68645.0,0.87328415]
[1730679816295,1.95510204,68646.0,68645.0,1.53101407]
[1730679816903,1.95510204,68646.0,68645.0,1.39098574]
[1730679817500,1.95510204,68646.0,68645.0,1.39081656]
[1730679821316,1.95510204,68646.0,68645.0,1.49261451]
[1730679821509,1.95510204,68646.0,68645.0,1.51086276]
[1730679824414,1.95510204,68646.0,68645.0,1.21086276]
[1730679825805,1.95510204,68646.0,68645.0,1.32720328]
[1730679826211,1.95510204,68646.0,68645.0,1.94588328]
[1730679826415,1.95510204,68646.0,68645.0,3.43246276]
[1730679826612,1.95510204,68646.0,68645.0,3.54891161]
[1730679827004,1.95510204,68646.0,68645.0,3.54891256]
[1730679827206,1.95510204,68646.0,68645.0,3.43246276]
[1730679828130,1.95510204,68646.0,68645.0,3.54892611]
[1730679828508,1.95510204,68646.0,68645.0,3.43246276]
[1730679831507,1.95510204,68646.0,68645.0,3.12246035]
[1730679831819,1.95510204,68646.0,68645.0,3.4333488]
[1730679832410,1.95510204,68646.0,68645.0,1.9333488]
[1730679834811,1.95510204,68646.0,68645.0,2.07045222]
[1730679835335,1.95510204,68646.0,68645.0,1.9333488]
[1730679837127,1.95510204,68646.0,68645.0,1.2117488]
[1730679837421,1.95510204,68646.0,68645.0,2.11704934]
[1730679837622,1.95510204,68646.0,68645.0,1.92227907]
[1730679838124,1.95510204,68646.0,68645.0,2.02519907]
[1730679839222,1.95510204,68646.0,68645.0,1.58815907]
[1730679839417,1.95510204,68646.0,68645.0,1.7047251]
[1730679840017,1.95510204,68646.0,68645.0,2.1417651]
[1730679840224,1.9040848,68646.0,68645.0,2.02519907]
[1730679840917,1.31361226,68646.0,68645.0,2.11704934]
[1730679841123,1.31361226,68646.0,68645.0,2.64594707]
[1730679841124,0.66252372,68646.0,68645.0,2.64594707]
[1730679841313,0.50993107,68646.0,68645.0,2.64594707]
[1730679841514,0.0332,68667.0,68666.0,0.065557]
[1730679841721,0.0332,68667.0,68666.0,0.9034273]
[1730679842417,0.0635,68673.0,68666.0,0.9034273]
[1730679842616,0.0308,68683.0,68681.0,0.065542]
[1730679842833,0.0308,68683.0,68682.0,0.63029085]
[1730679843021,0.0308,68683.0,68682.0,0.53844058]
[1730679843412,0.0308,68683.0,68682.0,0.44659031]
[1730679843729,0.096341,68683.0,68682.0,0.3608]
[1730679844427,0.101341,68683.0,68682.0,0.3608]
[1730679844728,0.101341,68683.0,68682.0,0.4474651]
[1730679844927,0.538141,68683.0,68682.0,0.4474651]
[1730679845128,0.71136386,68683.0,68682.0,0.0721242]
[1730679845319,0.71136386,68683.0,68682.0,0.02849554]
[1730679845519,0.71136386,68683.0,68682.0,0.0721242]
[1730679846223,0.57144111,68683.0,68682.0,0.0721242]
[1730679846613,0.57144111,68683.0,68682.0,0.02849554]
[1730679846810,0.106341,68683.0,68682.0,0.02849554]
[1730679849726,0.543141,68683.0,68682.0,0.02849554]
[1730679850123,0.843141,68683.0,68682.0,0.02849554]
[1730679850336,0.13992275,68682.0,68677.0,0.04359032]
[1730679850527,0.93756275,68682.0,68677.0,0.04359332]
[1730679850831,0.04208,68683.0,68682.0,0.065542]
[1730679851131,0.0408,68683.0,68682.0,0.45582735]
[1730679851334,0.0408,68683.0,68682.0,0.51399691]
[1730679851335,0.0358,68683.0,68682.0,0.51399691]
[1730679851518,0.0358,68683.0,68682.0,0.45582735]
[1730679853224,0.0308,68683.0,68682.0,0.45582735]
[1730679853529,0.0358,68683.0,68682.0,0.45582735]
[1730679853827,0.0368,68683.0,68682.0,0.45582735]
[1730679856038,0.0368,68683.0,68682.0,0.43384926]
[1730679858025,0.0368,68683.0,68682.0,0.45582735]
[1730679858222,0.0368,68683.0,68682.0,0.49939126]
[1730679860731,0.0368,68683.0,68682.0,0.45582735]
[1730679861635,0.006,68683.0,68682.0,0.45582735]
[1730679864226,0.006,68683.0,68682.0,0.39028535]
[1730679866534,0.006,68683.0,68682.0,0.44845491]
[1730679866930,0.69200618,68683.0,68682.0,0.39028535]
[1730679867136,0.60017359,68683.0,68682.0,0.43389815]
[1730679867934,0.69200618,68683.0,68682.0,0.07309815]
[1730679868139,0.69200618,68683.0,68682.0,0.02948535]
[1730679869034,0.69200618,68683.0,68676.0,0.05816956]
[1730679869035,0.48966518,68683.0,68676.0,0.05816956]
[1730679869234,0.48966518,68683.0,68677.0,0.02678772]
[1730679869235,0.15737859,68678.0,68677.0,0.02678772]
[1730679869430,0.20551694,68678.0,68677.0,0.02678772]
[1730679869634,0.64235694,68678.0,68677.0,0.02678772]
[1730679870029,0.502386,68678.0,68677.0,0.02678772]
[1730679870232,0.065544,68681.0,68680.0,0.065543]
[1730679872540,0.002,68681.0,68680.0,0.05822432]
[1730679872749,0.002,68681.0,68678.0,0.05822432]
[1730679872750,0.065545,68679.0,68678.0,0.05822432]
[1730679872937,0.13997094,68679.0,68677.0,0.02678772]
[1730679873244,0.065546,68678.0,68677.0,0.02678772]
[1730679874034,0.003,68679.0,68678.0,0.065546]
[1730679875560,0.001,68679.0,68678.0,0.065546]
[1730679875755,0.065543,68681.0,68678.0,0.065546]
[1730679876152,0.13997094,68690.0,68680.0,0.3608]
[1730679876347,0.065539,68686.0,68681.0,0.12375931]
[1730679876550,0.06554,68684.0,68682.0,0.05821631]
[1730679876846,0.13997094,68690.0,68682.0,0.05821631]
[1730679876847,0.065541,68683.0,68682.0,0.05821631]
[1730679877560,0.065541,68683.0,68681.0,0.099243]
[1730679877747,0.008,68686.0,68682.0,0.065541]
[1730679877953,0.073538,68686.0,68683.0,0.05821325]
[1730679878151,0.065539,68685.0,68683.0,0.05821325]
[1730679879754,0.072539,68685.0,68683.0,0.05921325]
[1730679879950,0.64231094,68684.0,68683.0,0.05921325]
[1730679880146,0.70621094,68684.0,68683.0,0.002]
[1730679880350,1.00621094,68684.0,68683.0,0.002]
[1730679881151,1.00621094,68684.0,68683.0,0.001]
[1730679881454,0.70721094,68684.0,68683.0,0.002]
[1730679881857,0.70721094,68684.0,68683.0,0.001]
[1730679882058,0.71321094,68684.0,68683.0,0.002]
[1730679882966,0.68021094,68684.0,68683.0,0.002]
[1730679883265,0.64931094,68684.0,68683.0,0.002]
[1730679885363,0.67756373,68684.0,68683.0,0.002]
[1730679890169,0.24076373,68684.0,68683.0,0.002]
[1730679890471,0.67756373,68684.0,68683.0,0.002]
[1730679894957,1.17833467,68684.0,68683.0,0.002]
[1730679895177,0.065546,68678.0,68677.0,0.02678772]
[1730679895361,0.56631694,68678.0,68677.0,0.02678772]
[1730679895561,1.00315694,68678.0,68677.0,0.02678772]
[1730679896063,1.10583694,68678.0,68677.0,0.02678772]
[1730679896968,1.10783694,68678.0,68677.0,0.02678772]
[1730679897875,1.10883694,68678.0,68677.0,0.02678772]
[1730679902972,1.00615694,68678.0,68677.0,0.02678772]
[1730679903473,0.429346,68678.0,68677.0,0.02678772]
[1730679903873,0.56931694,68678.0,68677.0,0.02678772]
[1730679904265,0.56931694,68678.0,68677.0,0.05848772]
[1730679907074,0.56831694,68678.0,68677.0,0.05848772]
[1730679907266,0.52319796,68678.0,68677.0,0.05848772]
[1730679907670,0.96003796,68678.0,68677.0,0.02678772]
[1730679908071,0.52319796,68678.0,68677.0,0.02678772]
[1730679908778,0.52019796,68678.0,68677.0,0.02678772]
[1730679908976,0.52319796,68678.0,68677.0,0.02678772]
[1730679909376,0.431346,68678.0,68677.0,0.02678772]
[1730679909783,0.432346,68678.0,68677.0,0.02678772]
[1730679910272,0.426346,68678.0,68677.0,0.02678772]
[1730679910474,0.431346,68678.0,68677.0,0.02678772]
[1730679910877,0.428346,68678.0,68677.0,0.02678772]
[1730679911281,0.429346,68678.0,68677.0,0.05888772]
[1730679913181,0.431346,68678.0,68677.0,0.05888772]
[1730679913679,0.428346,68678.0,68677.0,0.05888772]
[1730679913881,0.430346,68678.0,68677.0,0.05888772]
[1730679914075,0.428346,68678.0,68677.0,0.05888772]
[1730679914276,0.429346,68678.0,68677.0,0.05888772]
[1730679921888,0.430346,68678.0,68677.0,0.05888772]
[1730679922277,0.429346,68678.0,68677.0,0.05888772]
[1730679922480,0.431346,68678.0,68677.0,0.05888772]
[1730679924376,0.02953279,68684.0,68677.0,0.94837968]
[1730679924676,0.3608,68693.0,68677.0,0.94837968]
[1730679924677,0.065535,68689.0,68688.0,0.065535]
[1730679925997,0.065535,68689.0,68688.0,0.12375329]
[1730679926285,0.065535,68689.0,68688.0,0.066535]
[1730679926286,0.076535,68689.0,68688.0,0.066535]
[1730679926974,0.011,68689.0,68688.0,0.066535]
[1730679927181,0.014,68689.0,68688.0,0.21754481]
[1730679927576,0.014,68689.0,68688.0,0.15938696]
[1730679928289,0.014,68689.0,68688.0,0.21752257]
[1730679928486,0.014,68689.0,68688.0,0.24670372]
[1730679929293,0.014,68689.0,68688.0,0.09671615]
[1730679929996,0.014,68689.0,68688.0,0.002]
[1730679930192,0.079535,68689.0,68688.0,0.002]
[1730679931085,0.21944477,68689.0,68688.0,0.002]
[1730679931486,0.014,68689.0,68688.0,0.002]
[1730679931986,0.014,68689.0,68688.0,0.067536]
[1730679932798,0.014,68689.0,68688.0,0.002]
[1730679933191,0.21944477,68689.0,68688.0,0.002]
[1730679936803,0.079535,68689.0,68688.0,0.002]
[1730679944304,0.079535,68689.0,68688.0,0.3628]
[1730679944506,0.014,68689.0,68688.0,0.56824577]
[1730679950911,0.014,68689.0,68688.0,0.5975041]
[1730679952115,0.014,68689.0,68688.0,0.45759433]
[1730679952616,0.014,68689.0,68688.0,0.428336]
[1730679952809,0.079535,68689.0,68688.0,0.42097189]
[1730679953419,0.079535,68689.0,68688.0,0.3628]
[1730679954000,0.440335,68689.0,68688.0,0.002]
[1730679955305,0.58028586,68689.0,68688.0,0.002]
[1730679955701,0.58028586,68689.0,68683.0,0.05820184]
[1730679955702,0.440335,68689.0,68683.0,0.05820184]
[1730679955916,0.20549086,68684.0,68683.0,0.05820184]
[1730679956106,0.20549086,68684.0,68680.0,0.05820184]
[1730679956107,0.065543,68681.0,68680.0,0.05820184]
[1730679956419,0.065543,68681.0,68677.0,0.09233472]
[1730679956420,0.065546,68678.0,68677.0,0.09233472]
[1730679957611,0.065546,68678.0,68677.0,0.02678772]
[1730679958310,0.066546,68678.0,68677.0,0.02678772]
[1730679958713,0.066546,68678.0,68677.0,0.09233472]
[1730679960224,0.09564302,68678.0,68677.0,0.09233472]
[1730679961114,0.09564302,68678.0,68677.0,0.02678772]
[1730679963015,0.23559388,68678.0,68677.0,0.02678772]
[1730679968421,0.09564302,68678.0,68677.0,0.02678772]
[1730679968624,0.066546,68678.0,68677.0,0.02678772]
[1730679968923,0.066546,68678.0,68677.0,0.09233472]
[1730679970123,0.066546,68678.0,68677.0,0.02678772]
[1730679975535,0.15840145,68678.0,68677.0,0.02678772]
[1730679977324,0.20651389,68678.0,68677.0,0.02678772]
[1730679982034,0.21551389,68678.0,68677.0,0.02778772]
[1730679983234,0.21851389,68678.0,68677.0,0.02778772]
[1730679983630,0.21851389,68678.0,68677.0,0.02678772]
[1730679983631,0.21451389,68678.0,68677.0,0.02678772]
[1730679983836,0.21351389,68678.0,68677.0,0.02778772]
[1730679984532,0.21251389,68678.0,68677.0,0.02678772]
[1730679985336,0.20951389,68678.0,68677.0,0.02678772]
[1730679985641,0.64935389,68678.0,68677.0,0.02678772]
[1730679986729,0.64535389,68678.0,68677.0,0.02678772]
[1730679986928,0.64635389,68678.0,68677.0,0.02678772]
[1730679987133,0.64935389,68678.0,68677.0,0.02678772]
[1730679987324,0.64535389,68678.0,68677.0,0.02678772]
[1730679987527,0.64935389,68678.0,68677.0,0.02678772]
[1730679990042,0.64535389,68678.0,68677.0,0.02678772]
[1730679990343,0.64935389,68678.0,68677.0,0.02678772]
[1730679991233,0.64635389,68678.0,68677.0,0.02678772]
[1730679991432,0.64935389,68678.0,68677.0,0.02678772]
[1730679991628,0.065551,68672.0,68671.0,0.04366363]
[1730679991837,0.56631889,68672.0,68671.0,0.07445408]
[1730679993743,0.56631889,68672.0,68671.0,0.03079045]
[1730679993943,0.56631889,68672.0,68671.0,0.03279045]
[1730679994141,0.56631889,68672.0,68671.0,0.03479045]
[1730679994945,0.56631889,68672.0,68671.0,0.07845116]
[1730679995945,0.56631889,68672.0,68671.0,0.03479045]
[1730679996242,0.56631889,68672.0,68671.0,0.07845116]
[1730679996442,0.56631889,68672.0,68671.0,0.03479045]
[1730679996657,0.56631889,68672.0,68671.0,0.07845116]
[1730679996943,0.57231889,68672.0,68671.0,0.07745116]
[1730679997137,0.57231889,68672.0,68671.0,0.03379045]
[1730679997345,0.60181148,68672.0,68671.0,0.07745116]
[1730679997541,0.60181148,68672.0,68671.0,0.07545116]
[1730679997738,0.60081148,68672.0,68671.0,0.07845116]
[1730679997949,0.60081148,68672.0,68671.0,0.03479045]
[1730679998150,0.59581148,68672.0,68671.0,0.03379045]
[1730679998448,0.59581148,68672.0,68671.0,0.03479045]
[1730679999239,0.59581148,68672.0,68671.0,0.03279045]
[1730679999445,0.54770138,68672.0,68671.0,0.03279045]
[1730679999955,0.54770138,68672.0,68671.0,0.03179045]
[1730680000251,0.54770138,68672.0,68671.0,0.03279045]
[1730680002151,0.54770138,68672.0,68671.0,0.03179045]
[1730680002346,0.54770138,68672.0,68671.0,0.03279045]
[1730680006251,0.54770138,68672.0,68671.0,0.07645116]
[1730680006444,0.54770138,68672.0,68671.0,0.03279045]
[1730680007246,0.54770138,68672.0,68671.0,0.07645116]
[1730680010649,0.54770138,68672.0,68671.0,0.01255845]
[1730680012451,0.55870138,68672.0,68671.0,0.01255845]
[1730680013043,0.54770138,68672.0,68671.0,0.01155845]
[1730680013244,0.56270138,68672.0,68671.0,0.01255845]
[1730680013851,0.55770138,68672.0,68671.0,0.01155845]
[1730680014054,0.56270138,68672.0,68671.0,0.01255845]
[1730680017450,0.56270138,68672.0,68671.0,0.01155845]
[1730680017451,0.55270138,68672.0,68671.0,0.01155845]
[1730680017649,0.56170138,68672.0,68671.0,0.01255845]
[1730680018355,0.065563,68660.0,68657.0,0.05813033]